[Event "Titled Tuesday Blitz November 01 Early 2022"]
[White "Agasarov, Benik"]
[Black "Shubenkova, Veronika"]
[WhiteFideId "13314823"]
[BlackFideId "44124040"]
[WhiteElo "2152"]
[BlackElo "2027"]
[Result "1-0"]
[Round "03"]
[TimeControl "180+1"]
[Date "2022.11.02"]
[WhiteClock "0:01:35"]
[BlackClock "0:01:17"]

1. d4 {[%clk 0:03:00]}  d5 {[%clk 0:02:58]} 2. c4 {[%clk 0:03:00]}  e6 {[%clk 0:02:58]} 3. Nc3 {[%clk 0:02:59]}  Nf6 {[%clk 0:02:58]} 4. Nf3 {[%clk 0:02:58]}  c6 {[%clk 0:02:58]} 5. e3 {[%clk 0:02:56]}  Bd6 {[%clk 0:02:58]} 6. Bd3 {[%clk 0:02:54]}  O-O {[%clk 0:02:57]} 7. e4 {[%clk 0:02:47]}  dxe4 {[%clk 0:02:57]} 8. Nxe4 {[%clk 0:02:48]}  Be7 {[%clk 0:02:57]} 9. O-O {[%clk 0:02:46]}  Nbd7 {[%clk 0:02:55]} 10. Bf4 {[%clk 0:02:41]}  Nxe4 {[%clk 0:02:55]} 11. Bxe4 {[%clk 0:02:41]}  Nf6 {[%clk 0:02:55]} 12. Bc2 {[%clk 0:02:39]}  b6 {[%clk 0:02:54]} 13. Qe2 {[%clk 0:02:23]}  Bb7 {[%clk 0:02:51]} 14. Rad1 {[%clk 0:02:22]}  Qc8 {[%clk 0:02:47]} 15. h3 {[%clk 0:02:21]}  Rd8 {[%clk 0:02:47]} 16. Rfe1 {[%clk 0:02:20]}  Bb4 {[%clk 0:02:44]} 17. Rf1 {[%clk 0:02:09]}  c5 {[%clk 0:02:44]} 18. a3 {[%clk 0:02:09]}  Ba5 {[%clk 0:02:43]} 19. Bg5 {[%clk 0:02:01]}  Qc7 {[%clk 0:02:12]} 20. Bxf6 {[%clk 0:01:57]}  gxf6 {[%clk 0:02:11]} 21. d5 {[%clk 0:01:50]}  exd5 {[%clk 0:02:06]} 22. cxd5 {[%clk 0:01:49]}  Rxd5 {[%clk 0:01:41]} 23. Qe4 {[%clk 0:01:41]}  Rh5 {[%clk 0:01:38]} 24. Qg4+ {[%clk 0:01:41]}  Rg5 {[%clk 0:01:27]} 25. Nxg5 {[%clk 0:01:40]}  fxg5 {[%clk 0:01:27]} 26. Qxg5+ {[%clk 0:01:40]}  Kf8 {[%clk 0:01:28]} 27. Qh6+ {[%clk 0:01:40]}  Ke8 {[%clk 0:01:24]} 28. Rfe1+ {[%clk 0:01:41]}  Bxe1 {[%clk 0:01:23]} 29. Rxe1+ {[%clk 0:01:35]}  Kd7 {[%clk 0:01:22]} 30. Bf5+ {[%clk 0:01:35]}  Kd8 {[%clk 0:01:17]} 31. Qf8# {[%clk 0:01:35]} 1-0


[Site "https://www.chess.com"]

[Event "Titled Tuesday Blitz November 01 Early 2022"]
[White "Al-Tarboush, Ward"]
[Black "Perez Rodriguez, Jennifer"]
[WhiteFideId "7601450"]
[BlackFideId "3507831"]
[WhiteElo "2269"]
[BlackElo "2170"]
[Result "1-0"]
[Round "03"]
[TimeControl "180+1"]
[Date "2022.11.02"]
[WhiteClock "0:01:38"]
[BlackClock "0:00:54"]

1. e4 {[%clk 0:03:00]}  e5 {[%clk 0:02:59]} 2. Nf3 {[%clk 0:03:01]}  Nc6 {[%clk 0:02:58]} 3. Bb5 {[%clk 0:03:01]}  f5 {[%clk 0:02:57]} 4. Nc3 {[%clk 0:02:59]}  fxe4 {[%clk 0:02:56]} 5. Nxe4 {[%clk 0:03:00]}  Nf6 {[%clk 0:02:55]} 6. Nxf6+ {[%clk 0:03:00]}  Qxf6 {[%clk 0:02:55]} 7. Qe2 {[%clk 0:03:00]}  Be7 {[%clk 0:02:56]} 8. Bxc6 {[%clk 0:03:00]}  bxc6 {[%clk 0:02:56]} 9. Qxe5 {[%clk 0:03:01]}  Qxe5+ {[%clk 0:02:45]} 10. Nxe5 {[%clk 0:03:01]}  O-O {[%clk 0:02:44]} 11. d3 {[%clk 0:02:59]}  Bf6 {[%clk 0:02:43]} 12. Nf3 {[%clk 0:02:58]}  Re8+ {[%clk 0:02:42]} 13. Kd1 {[%clk 0:02:57]}  Rb8 {[%clk 0:02:38]} 14. c3 {[%clk 0:02:56]}  c5 {[%clk 0:02:37]} 15. Re1 {[%clk 0:02:55]}  Rf8 {[%clk 0:02:34]} 16. Kc2 {[%clk 0:02:52]}  d6 {[%clk 0:02:35]} 17. Be3 {[%clk 0:02:50]}  Bb7 {[%clk 0:02:33]} 18. Rad1 {[%clk 0:02:45]}  Rbe8 {[%clk 0:02:25]} 19. d4 {[%clk 0:02:39]}  cxd4 {[%clk 0:02:22]} 20. cxd4 {[%clk 0:02:34]}  Be4+ {[%clk 0:02:02]} 21. Kc1 {[%clk 0:02:34]}  Bd8 {[%clk 0:02:01]} 22. Bd2 {[%clk 0:02:21]}  Bxf3 {[%clk 0:01:52]} 23. Rxe8 {[%clk 0:02:21]}  Rxe8 {[%clk 0:01:50]} 24. gxf3 {[%clk 0:02:21]}  Rf8 {[%clk 0:01:49]} 25. f4 {[%clk 0:02:21]}  Rf5 {[%clk 0:01:40]} 26. Be3 {[%clk 0:02:17]}  Rh5 {[%clk 0:01:38]} 27. Rh1 {[%clk 0:02:15]}  Rh3 {[%clk 0:01:37]} 28. Kd2 {[%clk 0:02:15]}  d5 {[%clk 0:01:37]} 29. Ke2 {[%clk 0:02:14]}  Kf7 {[%clk 0:01:37]} 30. Kf1 {[%clk 0:02:14]}  Ke6 {[%clk 0:01:37]} 31. Kg2 {[%clk 0:02:14]}  Rh5 {[%clk 0:01:35]} 32. Rc1 {[%clk 0:02:14]}  Kd6 {[%clk 0:01:26]} 33. Bd2 {[%clk 0:02:10]}  Bf6 {[%clk 0:01:20]} 34. Bb4+ {[%clk 0:02:09]}  Kd7 {[%clk 0:01:20]} 35. Bc5 {[%clk 0:02:10]}  a6 {[%clk 0:01:19]} 36. Rc3 {[%clk 0:02:09]}  Rh4 {[%clk 0:01:15]} 37. Kg3 {[%clk 0:02:08]}  h5 {[%clk 0:01:13]} 38. h3 {[%clk 0:02:06]}  g5 {[%clk 0:01:12]} 39. fxg5 {[%clk 0:01:55]}  Bxg5 {[%clk 0:01:13]} 40. Rf3 {[%clk 0:01:49]}  Re4 {[%clk 0:01:10]} 41. Rf5 {[%clk 0:01:49]}  h4+ {[%clk 0:01:07]} 42. Kg2 {[%clk 0:01:45]}  Bc1 {[%clk 0:01:03]} 43. Rxd5+ {[%clk 0:01:44]}  Kc6 {[%clk 0:01:03]} 44. Rh5 {[%clk 0:01:40]}  Bxb2 {[%clk 0:01:04]} 45. Kf3 {[%clk 0:01:39]}  Re6 {[%clk 0:00:54]} 46. d5+ {[%clk 0:01:38]} 1-0


[Site "https://www.chess.com"]

[Event "Titled Tuesday Blitz November 01 Early 2022"]
[White "Alahakoon, Isuru"]
[Black "Novik, Maxim"]
[WhiteFideId "9900993"]
[BlackFideId "4102924"]
[WhiteElo "2062"]
[BlackElo "2312"]
[Result "1-0"]
[Round "03"]
[TimeControl "180+1"]
[Date "2022.11.02"]
[WhiteClock "0:00:11"]
[BlackClock "0:00:53"]

1. Nf3 {[%clk 0:03:00]}  c5 {[%clk 0:02:58]} 2. c3 {[%clk 0:03:00]}  b6 {[%clk 0:02:57]} 3. d4 {[%clk 0:02:59]}  Bb7 {[%clk 0:02:57]} 4. g3 {[%clk 0:02:59]}  Nf6 {[%clk 0:02:57]} 5. Bg2 {[%clk 0:02:58]}  e6 {[%clk 0:02:57]} 6. O-O {[%clk 0:02:58]}  Be7 {[%clk 0:02:58]} 7. Re1 {[%clk 0:02:55]}  O-O {[%clk 0:02:57]} 8. Nbd2 {[%clk 0:02:47]}  d5 {[%clk 0:02:38]} 9. Ne5 {[%clk 0:02:35]}  Nbd7 {[%clk 0:02:37]} 10. f4 {[%clk 0:02:28]}  Nxe5 {[%clk 0:02:29]} 11. fxe5 {[%clk 0:02:26]}  Nd7 {[%clk 0:02:22]} 12. e4 {[%clk 0:02:26]}  cxd4 {[%clk 0:02:12]} 13. cxd4 {[%clk 0:02:23]}  dxe4 {[%clk 0:01:45]} 14. Nxe4 {[%clk 0:02:24]}  Bd5 {[%clk 0:01:46]} 15. Qg4 {[%clk 0:02:15]}  Kh8 {[%clk 0:01:45]} 16. Qh5 {[%clk 0:02:13]}  f5 {[%clk 0:01:40]} 17. Ng5 {[%clk 0:01:38]}  Bxg5 {[%clk 0:01:40]} 18. Bxg5 {[%clk 0:01:33]}  Qe8 {[%clk 0:01:40]} 19. Qxe8 {[%clk 0:01:31]}  Rfxe8 {[%clk 0:01:40]} 20. Bxd5 {[%clk 0:01:31]}  exd5 {[%clk 0:01:40]} 21. Rac1 {[%clk 0:01:32]}  Nf8 {[%clk 0:01:40]} 22. Rc3 {[%clk 0:01:16]}  Ne6 {[%clk 0:01:40]} 23. Be3 {[%clk 0:01:17]}  Rac8 {[%clk 0:01:36]} 24. Rec1 {[%clk 0:01:17]}  Rxc3 {[%clk 0:01:35]} 25. Rxc3 {[%clk 0:01:18]}  Kg8 {[%clk 0:01:35]} 26. Kf2 {[%clk 0:01:12]}  Kf7 {[%clk 0:01:35]} 27. Ke2 {[%clk 0:01:12]}  Ke7 {[%clk 0:01:36]} 28. Kd3 {[%clk 0:01:12]}  Kd7 {[%clk 0:01:36]} 29. Ra3 {[%clk 0:01:09]}  a6 {[%clk 0:01:33]} 30. Rxa6 {[%clk 0:01:04]}  Rc8 {[%clk 0:01:33]} 31. Rxb6 {[%clk 0:01:00]}  Rc7 {[%clk 0:01:31]} 32. a4 {[%clk 0:00:58]}  g5 {[%clk 0:01:28]} 33. b4 {[%clk 0:00:42]}  Rc6 {[%clk 0:01:27]} 34. Rb7+ {[%clk 0:00:38]}  Rc7 {[%clk 0:01:26]} 35. Rb5 {[%clk 0:00:34]}  f4 {[%clk 0:01:24]} 36. Rxd5+ {[%clk 0:00:32]}  Ke7 {[%clk 0:01:24]} 37. gxf4 {[%clk 0:00:30]}  gxf4 {[%clk 0:01:24]} 38. Bf2 {[%clk 0:00:30]}  Rc1 {[%clk 0:01:23]} 39. Bh4+ {[%clk 0:00:26]}  Kf7 {[%clk 0:01:22]} 40. Rd7+ {[%clk 0:00:26]}  Kg6 {[%clk 0:01:23]} 41. Rd6 {[%clk 0:00:26]}  Kf5 {[%clk 0:01:23]} 42. a5 {[%clk 0:00:20]}  Rd1+ {[%clk 0:01:10]} 43. Kc4 {[%clk 0:00:20]}  f3 {[%clk 0:01:05]} 44. a6 {[%clk 0:00:19]}  Ra1 {[%clk 0:01:05]} 45. b5 {[%clk 0:00:18]}  Nf4 {[%clk 0:00:58]} 46. Rf6+ {[%clk 0:00:17]}  Ke4 {[%clk 0:00:58]} 47. Rxf4+ {[%clk 0:00:16]}  Kxf4 {[%clk 0:00:58]} 48. e6 {[%clk 0:00:16]}  Kg4 {[%clk 0:00:58]} 49. Bg3 {[%clk 0:00:16]}  h5 {[%clk 0:00:58]} 50. e7 {[%clk 0:00:16]}  Rc1+ {[%clk 0:00:56]} 51. Kd5 {[%clk 0:00:15]}  Rc8 {[%clk 0:00:57]} 52. Kd6 {[%clk 0:00:14]}  h4 {[%clk 0:00:57]} 53. Bf2 {[%clk 0:00:15]}  Kh3 {[%clk 0:00:56]} 54. Kd7 {[%clk 0:00:14]}  Rg8 {[%clk 0:00:56]} 55. e8=Q {[%clk 0:00:13]}  Rxe8 {[%clk 0:00:56]} 56. Kxe8 {[%clk 0:00:14]}  Kxh2 {[%clk 0:00:56]} 57. a7 {[%clk 0:00:14]}  h3 {[%clk 0:00:56]} 58. a8=Q {[%clk 0:00:14]}  Kg2 {[%clk 0:00:56]} 59. Be3 {[%clk 0:00:11]}  h2 {[%clk 0:00:55]} 60. Qa1 {[%clk 0:00:11]}  h1=Q {[%clk 0:00:52]} 61. Qxh1+ {[%clk 0:00:11]}  Kxh1 {[%clk 0:00:52]} 62. b6 {[%clk 0:00:12]}  Kg2 {[%clk 0:00:53]} 63. b7 {[%clk 0:00:12]}  Kf1 {[%clk 0:00:54]} 64. b8=Q {[%clk 0:00:11]}  Ke2 {[%clk 0:00:54]} 65. Qb3 {[%clk 0:00:11]}  f2 {[%clk 0:00:53]} 66. Bxf2 {[%clk 0:00:11]}  Kxf2 {[%clk 0:00:53]} 67. d5 {[%clk 0:00:11]} 1-0


[Site "https://www.chess.com"]

[Event "Titled Tuesday Blitz November 01 Early 2022"]
[White "Amgalantengis, Enkh-Amgalan"]
[Black "Nasuta, Grzegorz"]
[WhiteFideId "4903536"]
[BlackFideId "1141686"]
[WhiteElo "1772"]
[BlackElo "2442"]
[Result "1-0"]
[Round "03"]
[TimeControl "180+1"]
[Date "2022.11.02"]
[WhiteClock "0:01:59"]
[BlackClock "0:00:47"]

1. d4 {[%clk 0:02:59]}  Nf6 {[%clk 0:02:57]} 2. Nf3 {[%clk 0:02:59]}  g6 {[%clk 0:02:56]} 3. c4 {[%clk 0:02:56]}  c5 {[%clk 0:02:56]} 4. Nc3 {[%clk 0:02:55]}  Bg7 {[%clk 0:02:55]} 5. g3 {[%clk 0:02:55]}  O-O {[%clk 0:02:55]} 6. Bg2 {[%clk 0:02:56]}  d6 {[%clk 0:02:54]} 7. O-O {[%clk 0:02:56]}  Nc6 {[%clk 0:02:53]} 8. b3 {[%clk 0:02:55]}  cxd4 {[%clk 0:02:44]} 9. Nxd4 {[%clk 0:02:56]}  Bd7 {[%clk 0:02:43]} 10. Bb2 {[%clk 0:02:56]}  Qa5 {[%clk 0:02:43]} 11. e4 {[%clk 0:02:48]}  Nxd4 {[%clk 0:02:25]} 12. Qxd4 {[%clk 0:02:49]}  Bc6 {[%clk 0:02:25]} 13. Rad1 {[%clk 0:02:48]}  Nxe4 {[%clk 0:02:23]} 14. Qxg7+ {[%clk 0:02:39]}  Kxg7 {[%clk 0:02:23]} 15. Nxe4+ {[%clk 0:02:32]}  f6 {[%clk 0:02:23]} 16. a3 {[%clk 0:02:30]}  Rac8 {[%clk 0:02:20]} 17. Rfe1 {[%clk 0:02:29]}  Qc7 {[%clk 0:02:14]} 18. Nc3 {[%clk 0:02:24]}  Bxg2 {[%clk 0:02:13]} 19. Kxg2 {[%clk 0:02:25]}  Kf7 {[%clk 0:02:02]} 20. Nd5 {[%clk 0:02:23]}  Qc6 {[%clk 0:02:03]} 21. Kg1 {[%clk 0:02:22]}  e5 {[%clk 0:02:00]} 22. Rd3 {[%clk 0:02:17]}  b5 {[%clk 0:02:00]} 23. Nb4 {[%clk 0:02:16]}  Qb7 {[%clk 0:01:47]} 24. cxb5 {[%clk 0:02:15]}  Qxb5 {[%clk 0:01:45]} 25. Rxd6 {[%clk 0:02:15]}  a5 {[%clk 0:01:45]} 26. Nd5 {[%clk 0:02:15]}  Rfd8 {[%clk 0:01:44]} 27. Rxf6+ {[%clk 0:02:14]}  Kg7 {[%clk 0:01:32]} 28. Rxe5 {[%clk 0:02:03]}  Qxb3 {[%clk 0:00:51]} 29. Rb6 {[%clk 0:02:00]}  Qd1+ {[%clk 0:00:47]} 30. Re1+ {[%clk 0:01:59]} 1-0


[Site "https://www.chess.com"]

[Event "Titled Tuesday Blitz November 01 Early 2022"]
[White "Arabidze, Meri"]
[Black "Madaminov, Mukhiddin"]
[WhiteFideId "13604040"]
[BlackFideId "14210703"]
[WhiteElo "2403"]
[BlackElo "2341"]
[Result "0-1"]
[Round "03"]
[TimeControl "180+1"]
[Date "2022.11.01"]
[WhiteClock "0:00:05"]
[BlackClock "0:00:45"]

1. d4 {[%clk 0:02:56]}  Nf6 {[%clk 0:02:59]} 2. Nf3 {[%clk 0:02:56]}  e6 {[%clk 0:02:59]} 3. g3 {[%clk 0:02:56]}  c5 {[%clk 0:02:58]} 4. Bg2 {[%clk 0:02:57]}  cxd4 {[%clk 0:02:58]} 5. Nxd4 {[%clk 0:02:58]}  d5 {[%clk 0:02:58]} 6. O-O {[%clk 0:02:57]}  e5 {[%clk 0:02:59]} 7. Nf3 {[%clk 0:02:58]}  Nc6 {[%clk 0:02:54]} 8. c4 {[%clk 0:02:58]}  Be6 {[%clk 0:02:53]} 9. Ng5 {[%clk 0:02:52]}  Bc5 {[%clk 0:02:38]} 10. Nxe6 {[%clk 0:02:49]}  fxe6 {[%clk 0:02:38]} 11. Nc3 {[%clk 0:02:46]}  Ne7 {[%clk 0:02:21]} 12. Bg5 {[%clk 0:02:29]}  e4 {[%clk 0:02:16]} 13. b4 {[%clk 0:02:22]}  Bb6 {[%clk 0:02:12]} 14. Nb5 {[%clk 0:02:05]}  O-O {[%clk 0:02:09]} 15. c5 {[%clk 0:02:05]}  Bc7 {[%clk 0:02:09]} 16. Nd4 {[%clk 0:01:53]}  Qd7 {[%clk 0:02:04]} 17. Bh3 {[%clk 0:01:53]}  Nf5 {[%clk 0:02:02]} 18. Nxf5 {[%clk 0:01:28]}  exf5 {[%clk 0:02:03]} 19. Qd4 {[%clk 0:01:28]}  Rad8 {[%clk 0:01:54]} 20. Rad1 {[%clk 0:01:27]}  Qe6 {[%clk 0:01:50]} 21. e3 {[%clk 0:00:50]}  Be5 {[%clk 0:01:38]} 22. Qd2 {[%clk 0:00:50]}  d4 {[%clk 0:01:37]} 23. exd4 {[%clk 0:00:50]}  Rxd4 {[%clk 0:01:37]} 24. Qxd4 {[%clk 0:00:35]}  Bxd4 {[%clk 0:01:34]} 25. Rxd4 {[%clk 0:00:36]}  Nd7 {[%clk 0:01:23]} 26. Rd6 {[%clk 0:00:33]}  Qf7 {[%clk 0:01:16]} 27. Bf4 {[%clk 0:00:33]}  Qh5 {[%clk 0:00:55]} 28. Rxd7 {[%clk 0:00:30]}  Qxh3 {[%clk 0:00:54]} 29. Be5 {[%clk 0:00:28]}  Re8 {[%clk 0:00:52]} 30. Rxg7+ {[%clk 0:00:15]}  Kf8 {[%clk 0:00:51]} 31. Bb2 {[%clk 0:00:09]}  Rd8 {[%clk 0:00:50]} 32. Rxb7 {[%clk 0:00:06]}  f4 {[%clk 0:00:47]} 33. Be5 {[%clk 0:00:05]}  f3 {[%clk 0:00:45]} 0-1


[Site "https://www.chess.com"]

[Event "Titled Tuesday Blitz November 01 Early 2022"]
[White "Arbunic Castro, Giovanna"]
[Black "parintele_chess"]
[WhiteFideId "3400549"]
[WhiteElo "1849"]
[BlackElo "2212"]
[Result "0-1"]
[Round "03"]
[TimeControl "180+1"]
[Date "2022.11.02"]
[WhiteClock "0:00:10"]
[BlackClock "0:00:26"]

1. e4 {[%clk 0:03:00]}  e5 {[%clk 0:02:57]} 2. d4 {[%clk 0:02:58]}  exd4 {[%clk 0:02:57]} 3. Qxd4 {[%clk 0:02:57]}  Nc6 {[%clk 0:02:57]} 4. Qe3 {[%clk 0:02:57]}  Nf6 {[%clk 0:02:55]} 5. Nc3 {[%clk 0:02:55]}  Bb4 {[%clk 0:02:53]} 6. Bd2 {[%clk 0:02:53]}  O-O {[%clk 0:02:50]} 7. O-O-O {[%clk 0:02:52]}  d6 {[%clk 0:02:49]} 8. f3 {[%clk 0:02:50]}  Be6 {[%clk 0:02:45]} 9. g4 {[%clk 0:02:48]}  Bc5 {[%clk 0:02:41]} 10. Qe1 {[%clk 0:02:46]}  Ne5 {[%clk 0:02:28]} 11. Qg3 {[%clk 0:02:29]}  Nc4 {[%clk 0:02:25]} 12. Bxc4 {[%clk 0:02:23]}  Bxc4 {[%clk 0:02:26]} 13. g5 {[%clk 0:02:23]}  Nh5 {[%clk 0:02:25]} 14. Qg4 {[%clk 0:02:19]}  g6 {[%clk 0:02:22]} 15. f4 {[%clk 0:02:11]}  b5 {[%clk 0:02:16]} 16. Nf3 {[%clk 0:01:53]}  b4 {[%clk 0:01:50]} 17. Na4 {[%clk 0:01:44]}  Bf2 {[%clk 0:01:15]} 18. f5 {[%clk 0:00:59]}  Bb5 {[%clk 0:01:03]} 19. b3 {[%clk 0:00:40]}  Bxa4 {[%clk 0:01:03]} 20. bxa4 {[%clk 0:00:35]}  Qd7 {[%clk 0:01:00]} 21. Rhf1 {[%clk 0:00:27]}  Bb6 {[%clk 0:00:40]} 22. Bxb4 {[%clk 0:00:24]}  Qxa4 {[%clk 0:00:40]} 23. Bc3 {[%clk 0:00:22]}  Be3+ {[%clk 0:00:36]} 24. Nd2 {[%clk 0:00:18]}  Rab8 {[%clk 0:00:27]} 25. Qf3 {[%clk 0:00:10]}  Qa3+ {[%clk 0:00:26]} 0-1


[Site "https://www.chess.com"]

[Event "Titled Tuesday Blitz November 01 Early 2022"]
[White "Ardila, Oscar Humberto"]
[Black "Fathy, Elameir"]
[WhiteFideId "4404742"]
[BlackFideId "10600396"]
[WhiteElo "1898"]
[BlackElo "2311"]
[Result "0-1"]
[Round "03"]
[TimeControl "180+1"]
[Date "2022.11.02"]
[WhiteClock "0:00:16"]
[BlackClock "0:00:32"]

1. d4 {[%clk 0:02:59]}  d5 {[%clk 0:03:00]} 2. c4 {[%clk 0:02:59]}  e6 {[%clk 0:02:59]} 3. Nc3 {[%clk 0:02:59]}  c6 {[%clk 0:02:59]} 4. e3 {[%clk 0:02:57]}  f5 {[%clk 0:02:59]} 5. Nf3 {[%clk 0:02:57]}  Nf6 {[%clk 0:02:58]} 6. Bd2 {[%clk 0:02:57]}  Bd6 {[%clk 0:02:58]} 7. Bd3 {[%clk 0:02:54]}  O-O {[%clk 0:02:57]} 8. Qc2 {[%clk 0:02:53]}  Ne4 {[%clk 0:02:50]} 9. c5 {[%clk 0:02:50]}  Bc7 {[%clk 0:02:48]} 10. Rf1 {[%clk 0:02:50]}  b6 {[%clk 0:02:43]} 11. Bxe4 {[%clk 0:02:23]}  fxe4 {[%clk 0:02:39]} 12. Ne5 {[%clk 0:02:24]}  bxc5 {[%clk 0:02:27]} 13. O-O-O {[%clk 0:02:22]}  Ba6 {[%clk 0:02:02]} 14. Na4 {[%clk 0:02:11]}  Bxf1 {[%clk 0:02:00]} 15. Rxf1 {[%clk 0:02:11]}  Bxe5 {[%clk 0:01:57]} 16. dxe5 {[%clk 0:02:11]}  c4 {[%clk 0:01:53]} 17. Bb4 {[%clk 0:02:09]}  Nd7 {[%clk 0:01:46]} 18. Bd6 {[%clk 0:02:08]}  Rf5 {[%clk 0:01:38]} 19. Qc3 {[%clk 0:01:59]}  Qg5 {[%clk 0:01:23]} 20. g4 {[%clk 0:01:44]}  Qxg4 {[%clk 0:01:18]} 21. Nc5 {[%clk 0:01:34]}  Nxc5 {[%clk 0:01:16]} 22. Bxc5 {[%clk 0:01:33]}  Qe2 {[%clk 0:01:12]} 23. Re1 {[%clk 0:01:04]}  Qd3 {[%clk 0:01:13]} 24. Qxd3 {[%clk 0:00:57]}  cxd3 {[%clk 0:01:13]} 25. Rf1 {[%clk 0:00:56]}  Rxe5 {[%clk 0:01:09]} 26. Kd2 {[%clk 0:00:55]}  Rh5 {[%clk 0:01:08]} 27. Bd6 {[%clk 0:00:51]}  Rd8 {[%clk 0:01:06]} 28. Bg3 {[%clk 0:00:46]}  c5 {[%clk 0:01:00]} 29. Rc1 {[%clk 0:00:43]}  c4 {[%clk 0:01:00]} 30. b3 {[%clk 0:00:43]}  Rc8 {[%clk 0:00:58]} 31. bxc4 {[%clk 0:00:43]}  dxc4 {[%clk 0:00:55]} 32. Kc3 {[%clk 0:00:42]}  Rd5 {[%clk 0:00:52]} 33. Rd1 {[%clk 0:00:38]}  e5 {[%clk 0:00:48]} 34. Rd2 {[%clk 0:00:38]}  Kf7 {[%clk 0:00:48]} 35. Bh4 {[%clk 0:00:33]}  h6 {[%clk 0:00:47]} 36. Bg3 {[%clk 0:00:32]}  g5 {[%clk 0:00:47]} 37. h4 {[%clk 0:00:33]}  Kg6 {[%clk 0:00:46]} 38. hxg5 {[%clk 0:00:31]}  Kxg5 {[%clk 0:00:47]} 39. a4 {[%clk 0:00:29]}  h5 {[%clk 0:00:47]} 40. Bh2 {[%clk 0:00:23]}  Kg4 {[%clk 0:00:47]} 41. Rd1 {[%clk 0:00:24]}  d2 {[%clk 0:00:44]} 42. Rxd2 {[%clk 0:00:20]}  Rxd2 {[%clk 0:00:44]} 43. Kxd2 {[%clk 0:00:21]}  c3+ {[%clk 0:00:44]} 44. Kc2 {[%clk 0:00:21]}  Kf3 {[%clk 0:00:43]} 45. Bg3 {[%clk 0:00:21]}  Rg8 {[%clk 0:00:37]} 46. Bh4 {[%clk 0:00:21]}  Rg4 {[%clk 0:00:35]} 47. Bf6 {[%clk 0:00:21]}  Kxf2 {[%clk 0:00:35]} 48. Kxc3 {[%clk 0:00:21]}  Kxe3 {[%clk 0:00:34]} 49. Bxe5 {[%clk 0:00:21]}  h4 {[%clk 0:00:34]} 50. a5 {[%clk 0:00:21]}  h3 {[%clk 0:00:35]} 51. Bb8 {[%clk 0:00:20]}  a6 {[%clk 0:00:34]} 52. Ba7+ {[%clk 0:00:20]}  Ke2 {[%clk 0:00:34]} 53. Bb8 {[%clk 0:00:20]}  e3 {[%clk 0:00:33]} 54. Bc7 {[%clk 0:00:18]}  Rg2 {[%clk 0:00:31]} 55. Kc4 {[%clk 0:00:17]}  h2 {[%clk 0:00:31]} 56. Bxh2 {[%clk 0:00:16]}  Rxh2 {[%clk 0:00:32]} 0-1


[Site "https://www.chess.com"]

[Event "Titled Tuesday Blitz November 01 Early 2022"]
[White "Aydin, Gulenay"]
[Black "Troltenier, Dirk"]
[WhiteFideId "34557431"]
[BlackFideId "4606400"]
[WhiteElo "2009"]
[BlackElo "2339"]
[Result "1-0"]
[Round "03"]
[TimeControl "180+1"]
[Date "2022.11.02"]
[WhiteClock "0:00:07"]
[BlackClock "0:00:10"]

1. e4 {[%clk 0:03:00]}  e5 {[%clk 0:02:59]} 2. Nf3 {[%clk 0:03:00]}  d6 {[%clk 0:02:59]} 3. d4 {[%clk 0:02:55]}  exd4 {[%clk 0:03:00]} 4. Nxd4 {[%clk 0:02:56]}  Nf6 {[%clk 0:02:59]} 5. Nc3 {[%clk 0:02:56]}  Be7 {[%clk 0:02:59]} 6. Bd3 {[%clk 0:02:39]}  O-O {[%clk 0:02:59]} 7. h3 {[%clk 0:02:38]}  Re8 {[%clk 0:02:59]} 8. O-O {[%clk 0:02:39]}  Nbd7 {[%clk 0:02:59]} 9. f4 {[%clk 0:02:36]}  Bf8 {[%clk 0:02:55]} 10. Be3 {[%clk 0:02:32]}  d5 {[%clk 0:02:44]} 11. e5 {[%clk 0:02:14]}  c5 {[%clk 0:02:43]} 12. exf6 {[%clk 0:02:14]}  Nxf6 {[%clk 0:02:01]} 13. Bf2 {[%clk 0:02:02]}  cxd4 {[%clk 0:01:56]} 14. Bxd4 {[%clk 0:02:02]}  Ne4 {[%clk 0:01:43]} 15. Re1 {[%clk 0:01:24]}  f5 {[%clk 0:01:42]} 16. b3 {[%clk 0:01:10]}  Be6 {[%clk 0:01:41]} 17. Nxe4 {[%clk 0:00:50]}  dxe4 {[%clk 0:01:38]} 18. Be2 {[%clk 0:00:51]}  Qc7 {[%clk 0:01:28]} 19. Bb2 {[%clk 0:00:46]}  Rad8 {[%clk 0:01:26]} 20. Qc1 {[%clk 0:00:46]}  Bc5+ {[%clk 0:01:12]} 21. Kh1 {[%clk 0:00:45]}  Qb6 {[%clk 0:01:12]} 22. c4 {[%clk 0:00:36]}  Be3 {[%clk 0:01:09]} 23. Qc3 {[%clk 0:00:36]}  Bd4 {[%clk 0:01:09]} 24. Qc2 {[%clk 0:00:34]}  Bxb2 {[%clk 0:01:01]} 25. Qxb2 {[%clk 0:00:35]}  Qf2 {[%clk 0:00:56]} 26. Rf1 {[%clk 0:00:33]}  Qe3 {[%clk 0:00:56]} 27. Rad1 {[%clk 0:00:30]}  Rxd1 {[%clk 0:00:53]} 28. Bxd1 {[%clk 0:00:31]}  Rd8 {[%clk 0:00:53]} 29. Qe5 {[%clk 0:00:17]}  Kf7 {[%clk 0:00:49]} 30. b4 {[%clk 0:00:12]}  Qd4 {[%clk 0:00:33]} 31. Qa5 {[%clk 0:00:10]}  Qxc4 {[%clk 0:00:23]} 32. Rg1 {[%clk 0:00:09]}  Rd7 {[%clk 0:00:20]} 33. Bb3 {[%clk 0:00:09]}  Qc7 {[%clk 0:00:19]} 34. Qxf5+ {[%clk 0:00:09]}  Ke8 {[%clk 0:00:14]} 35. Qxe6+ {[%clk 0:00:10]}  Re7 {[%clk 0:00:14]} 36. Qg8+ {[%clk 0:00:10]}  Kd7 {[%clk 0:00:14]} 37. Rd1+ {[%clk 0:00:11]}  Kc6 {[%clk 0:00:14]} 38. Qd5+ {[%clk 0:00:11]}  Kb6 {[%clk 0:00:14]} 39. Qd4+ {[%clk 0:00:12]}  Kb5 {[%clk 0:00:13]} 40. a4+ {[%clk 0:00:12]}  Ka6 {[%clk 0:00:13]} 41. Bc4+ {[%clk 0:00:12]}  b5 {[%clk 0:00:12]} 42. Bxb5+ {[%clk 0:00:13]}  Kb7 {[%clk 0:00:13]} 43. Qd5+ {[%clk 0:00:13]}  Kb8 {[%clk 0:00:12]} 44. Ba6 {[%clk 0:00:13]}  e3 {[%clk 0:00:11]} 45. Qb5+ {[%clk 0:00:12]}  Qb6 {[%clk 0:00:10]} 46. Rd8+ {[%clk 0:00:11]}  Kc7 {[%clk 0:00:11]} 47. Rc8+ {[%clk 0:00:10]}  Kd6 {[%clk 0:00:11]} 48. Qd3+ {[%clk 0:00:06]}  Ke6 {[%clk 0:00:11]} 49. Bc4+ {[%clk 0:00:07]}  Kf6 {[%clk 0:00:12]} 50. Rf8+ {[%clk 0:00:07]}  Rf7 {[%clk 0:00:10]} 51. Rxf7# {[%clk 0:00:07]} 1-0


[Site "https://www.chess.com"]